Workbook

Sheet Sheet1
B1: Date1 | C1: Date2 | D1: بالمتوسطات | E1: أبو أحمد | G1: أبو خليل | I1: Date1 | J1: Date2 | K1: فعلية | L1: أبو أحمد | N1: أبو خليل
B2: 2023-01-01 | C2: 2023-12-30 | D2: =(C2-B2+1)/365.25*360 -> 358.7679671 | E2: =GetDays360(B2,C2) -> 359.0322581 | F2: =ROUND(E2,0) -> 359 | G2: =GetMonths30(B2,C2) -> 301 | I2: 2023-01-14 | J2: 2023-01-31 | K2: =J2-I2+1 -> 18 | L2: =GetDays360(I2,J2) -> 17.41935484 | M2: =ROUND(L2,0) -> 17 | N2: =GetMonths30(I2,J2) -> 17
B3: 2023-02-02 | C3: 2023-11-28 | D3: =(C3-B3+1)/365.25*360 -> 295.687885 | E3: =GetDays360(B3,C3) -> 296.9285714 | F3: =ROUND(E3,0) -> 297 | G3: =GetMonths30(B3,C3) -> 244 | I3: 2023-01-15 | J3: 2023-01-31 | K3: =J3-I3+1 -> 17 | L3: =GetDays360(I3,J3) -> 16.4516129 | M3: =ROUND(L3,0) -> 16 | N3: =GetMonths30(I3,J3) -> 16
B4: 2023-03-03 | C4: 2023-10-26 | D4: 234.5790554 | E4: 233.2258065 | F4: =ROUND(E4,0) -> 233 | G4: 187 | I4: 2023-01-16 | J4: 2023-01-31 | K4: 16 | L4: 15.48387097 | M4: 15 | N4: 15
B5: 2023-04-04 | C5: 2023-09-24 | D5: 171.4989733 | E5: 171 | F5: =ROUND(E5,0) -> 171 | G5: 130 | I5: 2023-02-14 | J5: 2023-02-28 | K5: 15 | L5: =GetDays360(I5,J5) -> 16.07142857 | M5: =ROUND(L5,0) -> 16 | N5: =GetMonths30(I5,J5) -> 14
B6: 2023-05-05 | C6: 2023-08-22 | D6: 108.4188912 | E6: 107.4193548 | F6: =ROUND(E6,0) -> 107 | G6: 73 | I6: 2023-02-15 | J6: 2023-02-28 | K6: 14 | L6: =GetDays360(I6,J6) -> 15 | M6: 15 | N6: =GetMonths30(I6,J6) -> 13
B7: 2023-06-06 | C7: 2023-07-20 | D7: 44.35318275 | E7: 44.35483871 | F7: =ROUND(E7,0) -> 44 | G7: 16 | I7: 2023-02-16 | J7: 2023-02-28 | K7: 13 | L7: 13.92857143 | M7: 14 | N7: 12
B8: 2023-07-07 | C8: 2024-06-18 | D8: 342.9979466 | E8: 342.1935484 | F8: =ROUND(E8,0) -> 342 | G8: 379 | I8: 2024-02-14 | J8: 2024-02-29 | K8: 16 | L8: 16.55172414 | M8: 17 | N8: 15
B9: 2023-08-08 | C9: 2024-05-16 | D9: 278.9322382 | E9: 278.7096774 | F9: =ROUND(E9,0) -> 279 | G9: 442 | I9: 2024-02-15 | J9: 2024-02-29 | K9: 15 | L9: =GetDays360(I9,J9) -> 15.51724138 | M9: 16 | N9: =GetMonths30(I9,J9) -> 14
B10: 2023-09-09 | C10: 2024-04-14 | D10: 215.8521561 | E10: 216 | F10: =ROUND(E10,0) -> 216 | G10: 505 | I10: 2024-02-16 | J10: 2024-02-29 | K10: 14 | L10: 14.48275862 | M10: 14 | N10: 13
B11: 2023-10-10 | C11: 2024-03-12 | D11: 152.7720739 | E11: 152.9032258 | F11: =ROUND(E11,0) -> 153 | G11: 568 | I11: 2024-04-14 | J11: 2024-04-30 | K11: 17 | L11: =GetDays360(I11,J11) -> 17 | M11: 17 | N11: =GetMonths30(I11,J11) -> 16
B12: 2023-11-11 | C12: 2024-02-10 | D12: 90.67761807 | E12: 90.34482759 | F12: =ROUND(E12,0) -> 90 | G12: 629 | I12: 2024-04-15 | J12: 2024-04-30 | K12: 16 | L12: 16 | M12: 16 | N12: 15
B13: 2023-12-12 | C13: 2024-01-08 | D13: 27.59753593 | E13: 27.09677419 | F13: =ROUND(E13,0) -> 27 | G13: 686 | I13: 2024-04-16 | J13: 2024-04-30 | K13: 15 | L13: 15 | M13: 15 | N13: 14
